fUSD/lending_fUSD_20240801
["ID","MTS","AMOUNT","RATE_DAILY","PERIOD"]
[333794584,1722513043135,-287.59887118,0.00011,2]
[333794585,1722513043146,-615.28590621,0.00011,2]
[333794586,1722513043158,-600.64996105,0.00011,2]
[333794587,1722513043169,-5087.95758776,0.00011,2]
[333794588,1722513043182,-380.52822152,0.00011,2]
[333794589,1722513043195,-16736.653565,0.00011,2]
[333794590,1722513043206,-29586.91050982,0.00011,2]
[333794591,1722513043218,-460.32635449,0.00011,2]
[333794592,1722513043230,-4009.46782705,0.00011,2]
[333794746,1722513047068,-735.7335,0.00011,2]
[333794748,1722513047080,-290.5076296,0.00011,2]
[333794750,1722513047092,-4277.12782064,0.00011,2]
[333794753,1722513047107,-1470.51803953,0.00011,2]
[333794755,1722513047119,-6791.2554,0.00011,2]
[333794757,1722513047131,-3252.54000001,0.00011,2]
[333794761,1722513047158,-792.73224283,0.00011,2]
[333794764,1722513047175,-107192.67645149,0.00011,2]
[333794766,1722513047186,-98516.33577049,0.00011,2]
[333794847,1722514233753,-300.0,8.219e-05,2]
[333794848,1722514233763,-890.64,8.219e-05,2]
[333794849,1722514233773,-1100.0,8.22e-05,2]
[333794850,1722514233784,-600.0,8.22e-05,2]
[333794851,1722514233793,-1400.0,8.22e-05,2]
[333794852,1722514233803,-2100.0,8.726e-05,2]
[333794853,1722514233812,-2400.0,8.726e-05,2]
[333794854,1722514233822,-420.0,9.041e-05,2]
[333794855,1722514233832,-1100.0,9.042e-05,2]
[333794856,1722514233842,-1400.0,9.042e-05,2]
[333794857,1722514233852,-600.0,9.042e-05,2]
[333794858,1722514233862,-23900.0,9.31e-05,2]
[333794859,1722514233872,-162.08,9.313e-05,2]
[333794860,1722514233882,-250.0,9.336e-05,2]
[333794861,1722514233892,-166.37,9.343e-05,2]
[333794862,1722514233902,-200.0,9.346e-05,2]
[333794863,1722514233912,-150.0,9.547e-05,2]
[333794864,1722514233922,-2400.0,9.548e-05,2]
[333794865,1722514233932,-2100.0,9.548e-05,2]
[333794866,1722514233944,-1100.0,9.864e-05,2]
[333794867,1722514233954,-1400.0,9.864e-05,2]
[333794868,1722514233963,-600.0,9.864e-05,2]
[333794869,1722514233973,-587.0,9.945e-05,2]
[333794870,1722514233982,-289.14,9.948e-05,2]
[333794871,1722514233991,-289.14,9.951e-05,2]
[333794872,1722514234002,-289.14,9.953e-05,2]
[333794873,1722514234011,-7689.65,9.953e-05,2]
[333794874,1722514234021,-285.73,9.953e-05,2]
[333794875,1722514234030,-289.14,9.956e-05,2]
[333794876,1722514234040,-499.99,9.956e-05,2]
[333794877,1722514234050,-299.99,9.956e-05,2]
[333794878,1722514234059,-289.14,9.959e-05,2]
[333794879,1722514234069,-289.14,9.961e-05,2]
[333794880,1722514234080,-1314.67,9.964e-05,2]
[333794881,1722514234090,-289.14,9.964e-05,2]
[333794882,1722514234100,-289.14,9.966e-05,2]
[333794883,1722514234110,-289.14,9.969e-05,2]
[333794884,1722514234120,-289.14,9.972e-05,2]
[333794885,1722514234129,-289.14,9.974e-05,2]
[333794886,1722514234139,-289.14,9.977e-05,2]
[333794887,1722514234150,-289.14,9.98e-05,2]
[333794888,1722514234160,-289.14,9.982e-05,2]
[333794889,1722514234169,-289.14,9.985e-05,2]
[333794890,1722514234179,-289.14,9.987e-05,2]
[333794891,1722514234190,-289.14,9.99e-05,2]
[333794892,1722514234199,-289.14,9.993e-05,2]
[333794893,1722514234209,-289.14,9.995e-05,2]
[333794894,1722514234219,-289.14,9.998e-05,2]
[333794895,1722514234229,-1250.0,0.0001,2]
[333794896,1722514234239,-237.92,0.00010129,2]
[333794897,1722514234249,-1000.0,0.00010146,2]
[333794898,1722514234259,-420.49,0.00010341,2]
[333794899,1722514234268,-694.24840061,0.0001037,2]
[333794900,1722514234281,-1705.75159939,0.0001037,2]
[333794901,1722514234291,-2100.0,0.0001037,2]
[333794902,1722514234302,-890.64,0.00010441,2]
[333794903,1722514234312,-162.08,0.00010477,2]
[333794904,1722514234321,-179.99,0.00010502,2]
[333794905,1722514234331,-718.49065021,0.00010502,2]
[333794906,1722514234340,-530.21131214,0.00010607,2]
[333794907,1722514234350,-173.79,0.00010635,2]
[333794908,1722514234360,-1100.0,0.00010686,2]
[333794909,1722514234369,-1400.0,0.00010686,2]
[333794910,1722514234379,-153.57996655,0.00010701,2]
[333794911,1722514234389,-1909.61070712,0.00010775,2]
[333794912,1722514234487,-1746.55062526,0.00010775,2]
[333794913,1722514234499,-3504.07490294,0.00010775,2]
[333794914,1722514234552,-4701.41822294,0.00010775,2]
[333794922,1722514238198,-8452.25938196,0.00010775,2]
[333794924,1722514238211,-468.87,0.00010775,2]
[333794925,1722514238225,-624.63855005,0.00010775,2]
[333794926,1722514238237,-430.09994363,0.00010775,2]
[333794927,1722514238248,-19581.4776661,0.00010775,2]
[333794928,1722514238259,-530.21131215,0.000108,2]
[333794929,1722514238268,-400.0,0.000108,3]
[333794930,1722514238278,-152.987167,0.00010853,2]
[333794931,1722514238289,-150.99,0.00010899,2]
[333794932,1722514238299,-499.99,0.00010899,2]
[333794933,1722514238310,-300.62676032,0.00010899,2]
[333794934,1722514238319,-24316.9301,0.000109,2]
[333794935,1722514238329,-1000.0,0.000109,2]
[333794936,1722514238338,-348.4674,0.000109,2]
[333794937,1722514238348,-16427.6401,0.000109,2]
[333794938,1722514238357,-4490.5451,0.000109,2]
[333794939,1722514238367,-900.0,0.000109,3]
[333794940,1722514238376,-2087.7494,0.000109,2]
[333794941,1722514238386,-157.03278882,0.000109,2]
[333794942,1722514238395,-1000.0,0.000109,2]
[333794943,1722514238405,-4887.0,0.000109,5]
[333794944,1722514238420,-823.0,0.00010939,2]
[333794945,1722514238430,-250.0,0.00010959,2]
[333794946,1722514238442,-150.21,0.0001099,2]
[333794947,1722514238453,-6252.72240139,0.00010999,2]
[333794948,1722514238463,-321.69137635,0.00010999,2]
[333794949,1722514238473,-2000.0,0.00010999,2]
[333794950,1722514238483,-304758.78828849,0.00011,2]
[333794951,1722514238495,-250.0,0.00011,2]
[333794952,1722514238507,-1049.72746869,0.00011,2]
[333794953,1722514238518,-412.76630026,0.00011,2]
[333794954,1722514238528,-784.68341949,0.00011,4]
[333794955,1722514238538,-181.66385154,0.00011,2]
[333794956,1722514238547,-288.23391433,0.00011,2]
[333794957,1722514238556,-449.14284782,0.00011,2]
[333794958,1722514238566,-299.71268725,0.00011,2]
[333794959,1722514238575,-278.03390214,0.00011,2]
[333794960,1722514238585,-170.34699346,0.00011,2]
[333794961,1722514238594,-511.86220252,0.00011,2]
[333794962,1722514238604,-2000.0,0.00011,2]
[333794963,1722514238613,-2000.0,0.00011,2]
[333794964,1722514238622,-3146.03145564,0.00011,2]
[333794965,1722514238633,-211.0,0.00011,2]
[333794966,1722514238642,-150.715,0.00011,2]
[333794967,1722514238651,-150.0,0.00011,2]
[333794968,1722514238661,-150.0,0.00011,2]
[333794969,1722514238671,-227.57356757,0.00011,2]
[333794970,1722514238681,-2000.0,0.00011,2]
[333794971,1722514238692,-200.0,0.00011,2]
[333794972,1722514238701,-601.94913587,0.00011,2]
[333794973,1722514238711,-2000.0,0.00011,2]
[333794974,1722514238720,-200.0,0.00011,2]
[333794975,1722514238730,-622.889,0.00011,2]
[333794976,1722514238741,-1255.0,0.00011,2]
[333794977,1722514238751,-1664.0,0.00011,2]
[333794978,1722514238761,-1925.0,0.00011,2]
[333794979,1722514238771,-150.613,0.00011,2]
[333794980,1722514238782,-566.165,0.00011,2]
[333794981,1722514238792,-150.0,0.00011,2]
[333794982,1722514238802,-1892.0,0.00011,2]
[333794983,1722514238811,-550.0,0.00011,2]
[333794984,1722514238821,-150.0,0.00011,2]
[333794985,1722514238831,-3287.0,0.00011,2]
[333794986,1722514238840,-2000.0,0.00011,2]
[333794987,1722514238850,-200.0,0.00011,2]
[333794988,1722514238859,-3000.0,0.00011,2]
[333794989,1722514238868,-150.0,0.00011,2]
[333794990,1722514238877,-173.0,0.00011,2]
[333794991,1722514238886,-5126.0,0.00011,2]
[333794992,1722514238895,-2000.0,0.00011,2]
[333794993,1722514238905,-1669.0,0.00011,2]
[333794994,1722514238914,-5834.0,0.00011,2]
[333794995,1722514238923,-247.479,0.00011,2]
[333794996,1722514238934,-200.0,0.00011,2]
[333794997,1722514238945,-7281.90075114,0.00011,2]
[333794998,1722514238954,-1218.766,0.00011,2]
[333794999,1722514238963,-202.521,0.00011,2]
[333795000,1722514238973,-1074.0,0.00011,2]
[333795001,1722514238982,-300.62676032,0.00011033,2]
[333795002,1722514238992,-400.0,0.00011065,2]
[333795003,1722514239003,-301.572,0.00011082,2]
[333795004,1722514239012,-1380.0024,0.00011086,2]
[333795005,1722514239022,-150.21,0.00011095,2]
[333795006,1722514239033,-18651.45037774,0.00011105,2]
[333795007,1722514239043,-7000.0,0.00011105,2]
[333795008,1722514239052,-4480.84683441,0.00011105,2]
[333795009,1722514239062,-3931.48652396,0.00011105,2]
[333795010,1722514239072,-5984.1228263,0.00011105,2]
[333795011,1722514239081,-5536.78225408,0.00011105,2]
[333795012,1722514239092,-4937.69542868,0.00011105,2]
[333795013,1722514239102,-2445.86949612,0.00011105,2]
[333795014,1722514239111,-2242.92959776,0.00011105,2]
[333795015,1722514239120,-3626.15785401,0.00011105,2]
[333795016,1722514239130,-2213.01821001,0.00011105,2]
[333795017,1722514239139,-2371.14478164,0.00011105,2]
[333795018,1722514239149,-2256.00992945,0.00011105,2]
[333795019,1722514239158,-1703.78535169,0.00011105,2]
[333795020,1722514239167,-1030.74952894,0.00011105,2]
[333795021,1722514239177,-183.41548225,0.00011105,2]
[333795022,1722514239186,-1795.24711076,0.00011105,2]
[333795023,1722514239196,-1151.90334733,0.00011105,2]
[333795024,1722514239512,-1233.72509358,0.00011105,2]
[333795025,1722514239522,-1674.58380896,0.00011105,2]
[333795026,1722514239531,-1446.461804,0.00011105,2]
[333795027,1722514239540,-180.93171429,0.00011105,2]
[333795028,1722514239550,-243.57914316,0.00011105,2]
[333795029,1722514239559,-155.91353429,0.00011105,2]
[333795030,1722514239569,-548.78488907,0.00011105,2]
[333795031,1722514239578,-155.0,0.00011105,2]
[333795032,1722514239587,-196.98741999,0.00011105,2]
[333795033,1722514239597,-253.33580808,0.00011105,2]
[333795034,1722514239607,-159.51912708,0.00011105,2]
[333795035,1722514239616,-155.0,0.00011105,2]
[333795036,1722514239626,-1825.57250986,0.00011105,2]
[333795037,1722514239635,-158.88829798,0.00011105,2]
[333795038,1722514239644,-200.3325257,0.00011105,2]
[333795039,1722514239654,-18386.20257131,0.00011105,2]
[333795040,1722514239663,-167.57550803,0.00011105,2]
[333795041,1722514239672,-155.0,0.00011105,2]
[333795042,1722514239681,-610.76761096,0.00011105,2]
[333795043,1722514239691,-269.71352559,0.00011105,2]
[333795044,1722514239701,-155.0,0.00011105,2]
[333795045,1722514239711,-559.70770879,0.00011105,2]
[333795046,1722514239720,-1256.90515716,0.00011105,2]
[333795047,1722514239729,-155.0,0.00011105,2]
[333795048,1722514239739,-155.0,0.00011105,2]
[333795049,1722514239749,-463.77229385,0.00011105,2]
[333795050,1722514239758,-7269.27662273,0.00011105,2]
[333795051,1722514239767,-298.04833193,0.00011105,2]
[333795052,1722514239777,-155.0,0.00011105,2]
[333795053,1722514239787,-755.5574023,0.00011105,2]
[333795054,1722514239796,-155.0,0.00011105,2]
[333795055,1722514239806,-155.0,0.00011105,2]
[333795056,1722514239815,-370.09595876,0.00011105,2]
[333795057,1722514239826,-15451.93837133,0.00011105,2]
[333795058,1722514239836,-200.0,0.00011105,2]
[333795059,1722514239846,-378.2249968,0.00011105,2]
[333795060,1722514239856,-155.0,0.00011105,2]
[333795061,1722514239866,-155.0,0.00011105,2]
[333795062,1722514239876,-155.0,0.00011105,2]
[333795063,1722514239887,-155.0,0.00011105,2]
[333795064,1722514239896,-11749.81529166,0.00011105,2]
[333795065,1722514239907,-155.0,0.00011105,2]
[333795066,1722514239918,-413.59995532,0.00011105,2]
[333795067,1722514239929,-465.79096146,0.00011105,2]
[333795068,1722514239940,-155.0,0.00011105,2]
[333795069,1722514239951,-2484.91809209,0.00011105,2]
[333795070,1722514239962,-155.0,0.00011105,2]
[333795072,1722514239973,-303.5770843,0.00011105,2]
[333795073,1722514239985,-155.0,0.00011105,2]
[333795074,1722514239996,-1045.9737462,0.00011105,2]
[333795075,1722514240006,-5000.0,0.00011105,2]
[333795076,1722514240016,-155.0,0.00011105,2]
[333795077,1722514240026,-330.07457161,0.00011105,2]
[333795079,1722514240035,-473.85024205,0.00011105,2]
[333795081,1722514240045,-155.0,0.00011105,2]
[333795083,1722514240054,-219.8681452,0.00011105,2]
[333795085,1722514240064,-10637.8112991,0.00011105,2]
[333795087,1722514240073,-9157.6154913,0.00011105,2]
[333795089,1722514240082,-4089.96522126,0.00011105,2]
[333795091,1722514240092,-1725.0,0.00011105,2]
[333795093,1722514240101,-3735.80938039,0.00011105,2]
[333795095,1722514240110,-1518.9282933,0.00011105,2]
[333795097,1722514240182,-1500.0,0.00011105,2]
[333795098,1722514240193,-2496.79449887,0.00011105,2]
[333795099,1722514240202,-2561.7988778,0.00011105,2]
[333795100,1722514240211,-155.0,0.00011105,2]
[333795101,1722514240220,-1312.71668404,0.00011105,2]
[333795102,1722514240230,-1224.72855135,0.00011105,2]
[333795103,1722514240241,-1199.96683138,0.00011105,2]
[333795104,1722514240251,-1097.40654794,0.00011105,2]
[333795105,1722514240261,-841.53254223,0.00011105,2]
[333795106,1722514240270,-485.63784639,0.00011105,2]
[333795107,1722514240280,-523.67145714,0.00011105,2]
[333795108,1722514240289,-155.0,0.00011105,2]
[333795109,1722514240300,-155.02874731,0.00011105,2]
[333795110,1722514240309,-155.66449746,0.00011105,2]
[333795111,1722514240320,-181.70773519,0.00011105,2]
[333795112,1722514240329,-155.82148776,0.00011105,2]
[333795113,1722514240339,-155.60666915,0.00011105,2]
[333795114,1722514240350,-155.27619676,0.00011105,2]
[333795115,1722514240360,-702.06492977,0.00011105,2]
[333795116,1722514240370,-155.0,0.00011105,2]
[333795117,1722514240379,-400.0,0.00011105,2]
[333795118,1722514240388,-711.65334894,0.00011105,2]
[333795119,1722514240398,-846.47889205,0.00011105,2]
[333795120,1722514240408,-155.0,0.00011105,2]
[333795121,1722514240421,-155.54767079,0.00011105,2]
[333795122,1722514240431,-684.49684434,0.00011105,2]
[333795123,1722514240440,-826.94518138,0.00011105,2]
[333795124,1722514240451,-500.70385645,0.00011105,2]
[333795125,1722514240462,-815.71843367,0.00011105,2]
[333795126,1722514240472,-155.0,0.00011105,2]
[333795127,1722514240483,-155.0,0.00011105,2]
[333795128,1722514240492,-190.79750257,0.00011105,2]
[333795129,1722514240503,-380.82539865,0.00011105,2]
[333795130,1722514240512,-155.85328568,0.00011105,2]
[333795131,1722514240521,-155.0,0.00011105,2]
[333795132,1722514240530,-155.0,0.00011105,2]
[333795133,1722514240540,-567.41793047,0.00011105,2]
[333795134,1722514240549,-155.0,0.00011105,2]
[333795135,1722514240559,-378.52924476,0.00011105,2]
[333795136,1722514240568,-155.0,0.00011105,2]
[333795137,1722514240580,-155.0,0.00011105,2]
[333795138,1722514240590,-155.0,0.00011105,2]
[333795139,1722514240601,-155.0,0.00011105,2]
[333795140,1722514240612,-453.57672483,0.00011105,2]
[333795141,1722514240622,-622.544764,0.00011105,2]
[333795142,1722514240632,-247.37395801,0.00011105,2]
[333795143,1722514240642,-550.87561977,0.00011105,2]
[333795144,1722514240652,-155.0,0.00011105,2]
[333795145,1722514240664,-384.15428912,0.00011105,2]
[333795146,1722514240674,-155.0,0.00011105,2]
[333795147,1722514240685,-155.0,0.00011105,2]
[333795148,1722514240695,-155.0,0.00011105,2]
[333795149,1722514240704,-296.93307347,0.00011105,2]
[333795150,1722514240713,-466.84446199,0.00011105,2]
[333795151,1722514240723,-350.63239692,0.00011105,2]
[333795152,1722514240733,-155.0,0.00011105,2]
[333795153,1722514240742,-155.0,0.00011105,2]
[333795154,1722514240752,-155.0,0.00011105,2]
[333795155,1722514240761,-185.21498294,0.00011105,2]
[333795156,1722514240771,-155.0,0.00011105,2]
[333795157,1722514240781,-155.0,0.00011105,2]
[333795158,1722514240790,-184.13772259,0.00011105,2]
[333795159,1722514240799,-972.50201612,0.00011105,2]
[333795160,1722514240809,-182.59781326,0.00011105,2]
[333795161,1722514240818,-284.5851305,0.00011105,2]
[333795162,1722514240828,-155.0,0.00011105,2]
[333795163,1722514240837,-363.38446851,0.00011105,2]
[333795164,1722514240846,-191.81987821,0.00011105,2]
[333795165,1722514240856,-475.76636612,0.00011105,2]
[333795166,1722514240865,-181.65187256,0.00011105,2]
[333795167,1722514240876,-155.0,0.00011105,2]
[333795168,1722514240885,-323.6550491,0.00011105,2]
[333795169,1722514240895,-155.0,0.00011105,2]
[333795170,1722514240904,-434.41794924,0.00011105,2]
[333795171,1722514240914,-155.0,0.00011105,2]
[333795172,1722514240924,-240.23859932,0.00011105,2]
[333795173,1722514240934,-155.0,0.00011105,2]
[333795174,1722514240943,-155.0,0.00011105,2]
[333795175,1722514240953,-155.0,0.00011105,2]
[333795176,1722514240963,-320.31360299,0.00011105,2]
[333795177,1722514240972,-155.64902819,0.00011105,2]
[333795178,1722514240982,-155.0,0.00011105,2]
[333795179,1722514240992,-245.00929054,0.00011105,2]
[333795180,1722514241003,-329.79136714,0.00011105,2]
[333795181,1722514241012,-518.86884214,0.00011105,2]
[333795182,1722514241022,-202.73974551,0.00011105,2]
[333795183,1722514241032,-155.0,0.00011105,2]
[333795184,1722514241041,-242.37673701,0.00011105,2]
[333795185,1722514241051,-157.19721316,0.00011105,2]
[333795186,1722514241060,-4061.860329,0.00011105,2]
[333795187,1722514241070,-321.9189007,0.00011105,2]
[333795188,1722514241079,-155.0,0.00011105,2]
[333795189,1722514241089,-400.85725149,0.00011105,2]
[333795190,1722514241098,-230.77034213,0.00011105,2]
[333795191,1722514241108,-155.94145346,0.00011105,2]
[333795192,1722514241118,-8456.67300342,0.00011105,2]
[333795193,1722514241127,-155.0,0.00011105,2]
[333795194,1722514241137,-156.46908468,0.00011105,2]
[333795195,1722514241146,-1279.00669056,0.00011105,2]
[333795196,1722514241155,-1058.94007396,0.00011105,2]
[333795197,1722514241165,-804.65523101,0.00011105,2]
[333795198,1722514241174,-155.0,0.00011105,2]
[333795199,1722514241183,-2000.0,0.0001111,2]
[333795200,1722514241193,-200.0,0.0001111,2]
[333795201,1722514241203,-2000.0,0.0001111,2]
[333795202,1722514241212,-200.0,0.0001111,2]
[333795203,1722514241221,-2000.0,0.0001111,2]
[333795204,1722514241231,-200.0,0.0001111,2]
[333795205,1722514241241,-2000.0,0.0001111,2]
[333795206,1722514241250,-200.0,0.0001111,2]
[333795207,1722514241260,-152.987167,0.00011125,2]
[333795208,1722514241270,-155.0,0.00011161,2]
[333795209,1722514241280,-200.0,0.00011175,2]
[333795210,1722514241290,-200.0,0.00011175,2]
[333795211,1722514241299,-150.21,0.00011176,2]
[333795212,1722514241309,-68506.99299966,0.00011185,2]
[333795213,1722514241319,-53440.1764321,0.00011185,2]
[333795214,1722514241329,-52138.10324763,0.00011186,2]
[333795215,1722514241339,-36360.00000011,0.00011186,2]
[333795216,1722514241348,-2400.0,0.00011192,2]
[333795217,1722514241358,-2100.0,0.00011192,2]
[333795218,1722514241368,-400.0,0.00011201,2]
[333795219,1722514241378,-98998.04899661,0.00011205,2]
[333795220,1722514241388,-200.0,0.00011221,2]
[333795221,1722514241397,-2000.0,0.00011221,2]
[333795222,1722514241408,-200.0,0.00011221,2]
[333795223,1722514241420,-2000.0,0.00011221,2]
[333795224,1722514241430,-200.0,0.00011221,2]
[333795225,1722514241439,-2000.0,0.00011221,2]
[333795226,1722514241451,-200.0,0.00011221,2]
[333795227,1722514241460,-300.62676032,0.00011267,2]
[333795228,1722514241469,-2000.0,0.00011273,2]
[333795229,1722514241479,-150.21,0.00011314,2]
[333795230,1722514241490,-58888.32144573,0.00011324,2]
[333795231,1722514241572,-7759.32294957,0.00011324,2]
[333795232,1722514241583,-1358.30303484,0.00011324,2]
[333795233,1722514241595,-7541.85303482,0.00011324,2]
[333795234,1722514241606,-568.51573474,0.00011324,2]
[333795235,1722514241625,-427.8153428,0.00011324,2]
[333795236,1722514241637,-2910.38307176,0.00011324,2]
[333795237,1722514241649,-489.17891229,0.00011324,2]
[333795241,1722514243178,-183.51522012,0.00011101,2]
[333795242,1722514243189,-1194.22650277,0.00011324,2]
[333795243,1722514243284,-467.60579991,0.00011324,2]
[333795244,1722514243391,-740.14406386,0.00011324,2]
[333795245,1722514243458,-4675.74706937,0.00011324,2]
[333795270,1722514246323,-641.4,0.00010462,2]
[333795271,1722514246333,-382.10273181,0.00011324,2]
[333795272,1722514246344,-51320.8422674,0.00011324,2]
[333795273,1722514246532,-36082.67742687,0.00011324,2]
[333795274,1722514246542,-200.0,0.00011333,2]
[333795275,1722514246553,-2000.0,0.00011333,2]
[333795276,1722514246564,-200.0,0.00011333,2]
[333795277,1722514246575,-2000.0,0.00011333,2]
[333795278,1722514246585,-200.0,0.00011333,2]
[333795279,1722514246596,-2000.0,0.00011333,2]
[333795280,1722514246606,-200.0,0.00011333,2]
[333795281,1722514246616,-400.0,0.00011338,2]
[333795282,1722514246626,-379.33635123,0.00011392,2]
[333795283,1722514246635,-237.92,0.00011395,2]
[333795284,1722514246644,-152.987167,0.00011396,2]
[333795285,1722514246653,-1000.0,0.00011414,2]
[333795286,1722514246663,-200.0,0.00011447,2]
[333795287,1722514246672,-200.0,0.00011447,2]
[333795288,1722514246681,-2000.0,0.00011447,2]
[333795289,1722514246691,-200.0,0.00011447,2]
[333795290,1722514246701,-2000.0,0.00011447,2]
[333795291,1722514246710,-200.0,0.00011447,2]
[333795292,1722514246719,-400.0,0.00011474,2]
[333795293,1722514246729,-413.24131405,0.00011483,2]
[333795294,1722514246738,-200.0,0.00011493,2]
[333795295,1722514246748,-155.63422378,0.00011493,2]
[333795296,1722514246757,-300.62676032,0.000115,2]
[333795297,1722514246767,-173.0,0.00011507,2]
[333795298,1722514246776,-600.0,0.00011508,2]
[333795299,1722514246786,-200.0,0.0001152,2]
[333795300,1722514246795,-2000.0,0.00011547,2]
[333795301,1722514246804,-1400.0,0.000116,4]
[333795302,1722514246814,-162.08,0.00011642,2]
[333795303,1722514246823,-166.37,0.00011678,2]
[333795304,1722514246833,-661.15837675,0.000117,4]
[333795305,1722514246846,-1138.84162325,0.000117,4]
[333795306,1722514246855,-300.62676032,0.00011733,2]
[333795307,1722514246865,-191.90147783,0.00011799,2]
[333795308,1722514246875,-1158.48,0.000118,3]
[333795309,1722514246884,-2300.0,0.000118,4]
[333795310,1722514246894,-157.03278882,0.000118,2]
[333795311,1722514246904,-2000.0,0.00011821,2]
[333795312,1722514246914,-150.21,0.00011889,2]
[333795313,1722514246923,-150.21,0.00011889,2]
[333795314,1722514246933,-150.21,0.0001189,2]
[333795315,1722514246943,-150.21,0.0001189,2]
[333795316,1722514246955,-150.21,0.0001189,2]
[333795317,1722514246965,-150.21,0.0001189,2]
[333795318,1722514246974,-150.21,0.0001189,2]
[333795319,1722514246986,-150.21,0.0001189,2]
[333795320,1722514246996,-150.21,0.0001189,2]
[333795321,1722514247005,-150.21,0.0001189,2]
[333795322,1722514247015,-150.21,0.0001189,2]
[333795324,1722514247024,-150.21,0.0001189,2]
[333795325,1722514247034,-150.21,0.0001189,2]
[333795326,1722514247044,-150.21,0.0001189,2]
[333795327,1722514247054,-150.21,0.0001189,2]
[333795328,1722514247064,-150.21,0.0001189,2]
[333795329,1722514247073,-150.21,0.0001189,2]
[333795330,1722514247083,-150.21,0.0001189,2]
[333795331,1722514247092,-150.21,0.0001189,2]
[333795332,1722514247102,-2060.61510129,0.00011896,2]
[333795333,1722514247111,-96169.56647259,0.00011899,2]
[333795334,1722514247123,-12236.2,0.00011899,2]
[333795335,1722514253490,-150.0,0.0001337,30]
[333795426,1722515432388,-874.68,8.219e-05,2]
[333795427,1722515432398,-800.0,8.22e-05,2]
[333795428,1722515432408,-500.0,8.22e-05,2]
[333795429,1722515432417,-1000.0,8.22e-05,2]
[333795430,1722515432427,-151.30090361,8.22e-05,2]
[333795431,1722515432437,-800.0,9.042e-05,2]
[333795432,1722515432446,-1000.0,9.042e-05,2]
[333795433,1722515432456,-462.23,9.355e-05,2]
[333795434,1722515432466,-200.0,9.42e-05,2]
[333795435,1722515432476,-1141.674694,9.479e-05,2]
[333795436,1722515432486,-166.37,9.514e-05,2]
[333795437,1722515432496,-178.44,9.527e-05,2]
[333795438,1722515432505,-150.99,9.67e-05,2]
[333795439,1722515432515,-1400.0,9.822e-05,2]
[333795440,1722515432525,-1200.0,9.822e-05,2]
[333795441,1722515432535,-2000.0,9.854e-05,2]
[333795442,1722515432545,-800.0,9.864e-05,2]
[333795443,1722515432556,-500.0,9.864e-05,2]
[333795444,1722515432566,-1000.0,9.864e-05,2]
[333795445,1722515432575,-567.08,9.868e-05,2]
[333795446,1722515432585,-118.37516239,9.919e-05,2]
[333795447,1722515432602,-1284.35585131,9.919e-05,2]
[333795448,1722515432613,-876.72999162,9.919e-05,2]
[333795449,1722515432624,-882.67899468,9.919e-05,2]
[333795450,1722515432634,-820.39,9.937e-05,2]
[333795451,1722515432644,-178.31,9.956e-05,2]
[333795452,1722515432654,-150.0,9.982e-05,2]
[333795453,1722515432664,-163.17756587,9.982e-05,2]
[333795454,1722515432675,-594.67731106,9.982e-05,2]
[333795455,1722515432687,-251.35461498,9.982e-05,2]
[333795456,1722515432699,-164.30050809,9.982e-05,2]
[333795457,1722515432708,-499.99,9.982e-05,2]
[333795458,1722515432717,-116.7420809,9.99e-05,2]
[333795459,1722515432729,-173.1579191,9.99e-05,2]
[333795460,1722515432739,-499.99,9.99e-05,2]
[333795461,1722515432748,-1742.8520809,9.998e-05,2]
[333795462,1722515432759,-3049.89,9.998e-05,2]
[333795463,1722515432771,-2000.0,9.998e-05,2]
[333795464,1722515432784,-3686.50481544,9.998e-05,2]
[333795465,1722515432796,-150.0,9.999e-05,2]